Workbook

Sheet Total SCS opex forecast
A1: Evoenergy Electricity Distribution Deterimation 2019-24
A2: Opex model
A3: Total Standard Control Services
A4: Forecast | M4: Base year | N4: Final year | O4: 2019-24 regulatory control period
D5: Source | E5: Unit | F5: Basis | G5: Timing | L5: FY ending June | M5: =2018 -> 2018 | N5: =M5+1 -> 2019 | O5: 2020 | P5: 2021 | Q5: 2022 | R5: 2023 | S5: 2024 | U5: Total FY19-24
B9: Calc | Operating expenditure
M11: Actual/Forecast | N11: Forecast | O11: Forecast | P11: Forecast | Q11: Forecast | R11: Forecast | S11: Forecast
C12: Opex | D12: Source | E12: Unit | F12: Basis | M12: ="FY"&RIGHT(M$5,2) -> FY18 | N12: ="FY"&RIGHT(N$5,2) -> FY19 | O12: FY20 | P12: FY21 | Q12: FY22 | R12: FY23 | S12: ="FY"&RIGHT(S$5,2) -> FY24
C14: Base opex
C15: Total opex | E15: $ millions | F15: Nominal | G15: Mid-year | M15: 55.75228854 | T15: 2017/18 RIN excluding DMIA
B16: Adjustments | E16: $ millions | F16: Nominal | G16: Mid-year
C17: Power of Choice (Pass Through) | E17: $ millions | F17: Nominal | G17: Mid-year | M17: -1.54579846
C18: Ring Fencing Implementation (Pass Through) | E18: $ millions | F18: Nominal | G18: Mid-year | M18: -1.55172415
C19: TCCS contract switching costs | E19: $ millions | F19: Nominal | G19: Mid-year | M19: -0.045116 | T19: AER draft decision
C20: Adjusted base opex | E20: $ millions | F20: Nominal | G20: Mid-year | M20: =SUM(M15:M19) -> 52.60964993
C22: Rate of change
C23: Real input price growth | D23: Rate of change | E23: per cent | F23: n/a | N23: ='Rate of change'!N110 -> 0.002252232239 | O23: ='Rate of change'!O110 -> 0.001350433839 | P23: ='Rate of change'!P110 -> 0.003143392903 | Q23: ='Rate of change'!Q110 -> 0.005546775668 | R23: ='Rate of change'!R110 -> 0.005938035611 | S23: ='Rate of change'!S110 -> 0.005669416816
C24: Output growth | D24: Rate of change | E24: per cent | F24: n/a | N24: ='Rate of change'!N111 -> 0.01056436892 | O24: ='Rate of change'!O111 -> 0.005331036794 | P24: ='Rate of change'!P111 -> 0.01136628078 | Q24: ='Rate of change'!Q111 -> 0.01025708087 | R24: ='Rate of change'!R111 -> 0.01021166298 | S24: ='Rate of change'!S111 -> 0.009667306047
C25: Productivity growth | D25: Rate of change | E25: per cent | F25: n/a | N25: ='Rate of change'!N112 -> 0 | O25: ='Rate of change'!O112 -> 0 | P25: ='Rate of change'!P112 -> 0 | Q25: ='Rate of change'!Q112 -> 0 | R25: ='Rate of change'!R112 -> 0 | S25: ='Rate of change'!S112 -> 0
C26: Rate of change | D26: Calculated | E26: per cent | F26: n/a | N26: =(1+N23)*(1+N24)*(1-N25)-1 -> 0.01284039457 | O26: =(1+O23)*(1+O24)*(1-O25)-1 -> 0.006688669845 | P26: 0.01454540237 | Q26: 0.01586075026 | R26: 0.01621033581 | S26: 0.01539153085
C29: Base opex - Total SCS | D29: Calculated | F29: Real FY18 | G29: Year-end | M29: =SUM(M15:M19)/'Rate of change'!$M$26 -> 53.15337228 | N29: =M29*(1+N$26) -> 53.83588256 | O29: =N29*(1+O$26) -> 54.195973 | P29: =O29*(1+P$26) -> 54.98427524 | Q29: 55.85636709 | R29: 56.76181756 | S29: 57.63546883 | U29: =SUM(O29:S29) -> 279.4339017
C30: Base opex - Total SCS | D30: Calculated | F30: Real FY19 | G30: Year-end | M30: =M29*(1+'Rate of change'!$N$16) -> 54.34932316 | N30: =M30*(1+N26) -> 55.04718992 | O30: =N30*(1+O26) -> 55.41538239 | P30: =O30*(1+P26) -> 56.22142143 | Q30: 57.11313535 | R30: 58.03895846 | S30: 58.93226688 | U30: =SUM(O30:S30) -> 285.7211645
C34: Step changes
O36: ="FY"&RIGHT(O$5,2) -> FY20 | P36: FY21 | Q36: FY22 | R36: FY23 | S36: FY24
C37: Vegetation and private electrical infrastructure responsibilities | E37: $ millions | F37: Real FY19 | G37: Year-end | O37: 2.404928 | P37: 2.404928 | Q37: 2.404928 | R37: 2.404928 | S37: 2.404928 | U37: =SUM(O37:S37) -> 12.02464
C38: Strathnairn demand management opex capex trade-off | E38: $ millions | F38: Real FY19 | G38: Year-end | O38: 0.3514121659 | P38: 0.3525763682 | Q38: 0.3535342623 | R38: 0.3534645121 | S38: 0.3529756453 | U38: =SUM(O38:S38) -> 1.763962954
C40: Total step changes | D40: Calculated | E40: $ millions | F40: Real FY19 | G40: Year-end | O40: =SUM(O37:O38) -> 2.756340166 | P40: 2.757504368 | Q40: 2.758462262 | R40: 2.758392512 | S40: 2.757903645 | U40: =SUM(O40:S40) -> 13.78860295
C42: Total opex | D42: Calculated | E42: $ millions | F42: Real FY19 | G42: Year-end | O42: =O30+O40 -> 58.17172256 | P42: =P30+P40 -> 58.9789258 | Q42: 59.87159762 | R42: 60.79735097 | S42: 61.69017052 | U42: =SUM(O42:S42) -> 299.5097675
C44: Distribution allocation (AER draft decision with revised base year adjustments) | O44: 0.8568752333 | P44: 0.8568752333 | Q44: 0.8568752333 | R44: 0.8568752333 | S44: 0.8568752333
A46: Dist PTRM Input => | C46: Distribution allocation | E46: $ millions | F46: Real FY19 | G46: Year-end | O46: =O30*O44+O40 -> 50.24040888 | P46: =P30*P44+P40 -> 50.93224797 | Q46: 51.69729344 | R46: 52.49053858 | S46: 53.25550357 | U46: =SUM(O46:S46) -> 258.6159924
A47: Trans PTRM Input => | C47: Transmission allocation | E47: $ millions | F47: Real FY19 | G47: Year-end | O47: =O30*(1-O44) -> 7.931313678 | P47: =P30*(1-P44) -> 8.046677827 | Q47: 8.174304175 | R47: 8.30681239 | S47: 8.434666949 | U47: 40.89377502

Sheet Rate of change
C1: Evoenergy Electricity Distribution Deterimation 2019-24
C2: Opex model
C3: Rate of change | J3: 2014-19 regulatory period | O3: 2019-24 regulatory period
J4: Historical period | M4: Base year | N4: Forecast period
D5: Source | E5: Unit | I5: FY ending | J5: 2015 | K5: =J5+1 -> 2016 | L5: 2017 | M5: 2018 | N5: 2019 | O5: 2020 | P5: 2021 | Q5: 2022 | R5: 2023 | S5: 2024
B9: Input | Inflation
C11: Dollar conversion to year-end | D11: Calculated | I11: 0.5
C14: Inflation | N14: Forecast
I15: FY14 | J15: ="FY"&RIGHT(J$5,2) -> FY15 | K15: ="FY"&RIGHT(K$5,2) -> FY16 | L15: FY17 | M15: FY18 | N15: FY19 | O15: FY20 | P15: FY21 | Q15: FY22 | R15: FY23 | S15: FY24
C16: Inflation Rate | D16: AER draft decision | E16: Per cent | I16: 0.03015564202 | J16: 0.01510859301 | K16: 0.01023255814 | L16: 0.01933701657 | M16: 0.02077687444 | N16: 0.0225 | O16: 0.02449951148 | P16: 0.02449951148 | Q16: 0.02449951148 | R16: 0.02449951148 | S16: 0.02449951148 | U16: Inflation to FY19 set equal to AER draft decision opex model. Inflation from FY20 set equal to AER draft decision PTRMs.
C18: Source (actuals): ABS, all groups CPI inflation, weighted average for the eight capital cities - average of four quarters to December on the average of the four quarters to the previous December
C19: Source (forecast): Based on the AER's approach of calculating the geometric average based on the inflation forecasts for two years sourced from the latest available Reserve Bank of Australia’s (RBA’s) Statement of monetary policy and the mid-point of the RBA’s target inflation band for eight years.
C20: CPI indexes (real to nominal)
C22: Real 2014 | D22: Calculated | E22: factor | I22: =1/(1+I$16)^Dollar_Conversion_Factor -> 0.9852548407 | J22: =I22*(1+I$16)^(1-Dollar_Conversion_Factor)*(1+J$16)^Dollar_Conversion_Factor -> 1.007525976 | K22: 1.020288954 | L22: 1.035363291 | M22: 1.056129253 | N22: 1.078981856 | O22: 1.104337139 | P22: 1.13139286 | Q22: 1.159111432 | R22: 1.187509096 | S22: 1.216602489
C23: Real 2015 | D23: Calculated | E23: factor | I23: =J23/((1+J$16)^Dollar_Conversion_Factor*(1+I$16)^(1-Dollar_Conversion_Factor)) -> 0.9705905826 | J23: =1/(1+J$16)^Dollar_Conversion_Factor -> 0.9925302409 | K23: =J23*(1+J$16)^(1-Dollar_Conversion_Factor)*(1+K$16)^Dollar_Conversion_Factor -> 1.005103257 | L23: =K23*(1+K$16)^(1-Dollar_Conversion_Factor)*(1+L$16)^Dollar_Conversion_Factor -> 1.019953233 | M23: =L23*(1+L$16)^(1-Dollar_Conversion_Factor)*(1+M$16)^Dollar_Conversion_Factor -> 1.04041012 | N23: =M23*(1+M$16)^(1-Dollar_Conversion_Factor)*(1+N$16)^Dollar_Conversion_Factor -> 1.062922591 | O23: =N23*(1+N$16)^(1-Dollar_Conversion_Factor)*(1+O$16)^Dollar_Conversion_Factor -> 1.087900493 | P23: =O23*(1+O$16)^(1-Dollar_Conversion_Factor)*(1+P$16)^Dollar_Conversion_Factor -> 1.114553524 | Q23: =P23*(1+P$16)^(1-Dollar_Conversion_Factor)*(1+Q$16)^Dollar_Conversion_Factor -> 1.141859541 | R23: =Q23*(1+Q$16)^(1-Dollar_Conversion_Factor)*(1+R$16)^Dollar_Conversion_Factor -> 1.169834542 | S23: =R23*(1+R$16)^(1-Dollar_Conversion_Factor)*(1+S$16)^Dollar_Conversion_Factor -> 1.198494917
C24: Real 2016 | D24: Calculated | E24: factor | I24: =J24/((1+J$16)^Dollar_Conversion_Factor*(1+I$16)^(1-Dollar_Conversion_Factor)) -> 0.9705905826 | J24: =1/(1+J$16)^Dollar_Conversion_Factor -> 0.9925302409 | K24: =1/(1+K$16)^Dollar_Conversion_Factor -> 0.9949226536 | L24: =K24*(1+K$16)^(1-Dollar_Conversion_Factor)*(1+L$16)^Dollar_Conversion_Factor -> 1.009622215 | M24: 1.029871896 | N24: 1.05215634 | O24: 1.076881243 | P24: 1.103264308 | Q24: 1.130293744 | R24: 1.157985389 | S24: 1.186355465
C25: Real 2017 | D25: Calculated | E25: factor | I25: =J25/((1+J$16)^Dollar_Conversion_Factor*(1+I$16)^(1-Dollar_Conversion_Factor)) -> 0.9607595546 | J25: =K25/((1+K$16)^Dollar_Conversion_Factor*(1+J$16)^(1-Dollar_Conversion_Factor)) -> 0.982476988 | K25: =1/(1+K$16)^Dollar_Conversion_Factor -> 0.9949226536 | L25: =1/(1+L$16)^Dollar_Conversion_Factor -> 0.9904694898 | M25: =L25*(1+L$16)^(1-Dollar_Conversion_Factor)*(1+M$16)^Dollar_Conversion_Factor -> 1.010335031 | N25: 1.032196735 | O25: 1.056452602 | P25: 1.082335175 | Q25: 1.108851858 | R25: 1.136018187 | S25: 1.163850077
C26: Real 2018 | D26: Calculated | E26: factor | I26: =J26/((1+J$16)^Dollar_Conversion_Factor*(1+I$16)^(1-Dollar_Conversion_Factor)) -> 0.9425337636 | J26: =K26/((1+K$16)^Dollar_Conversion_Factor*(1+J$16)^(1-Dollar_Conversion_Factor)) -> 0.9638392131 | K26: =L26/((1+L$16)^Dollar_Conversion_Factor*(1+K$16)^(1-Dollar_Conversion_Factor)) -> 0.9760487821 | L26: =1/(1+L$16)^Dollar_Conversion_Factor -> 0.9904694898 | M26: =1/(1+M$16)^Dollar_Conversion_Factor -> 0.9897706895 | N26: =M26*(1+M$16)^(1-Dollar_Conversion_Factor)*(1+N$16)^Dollar_Conversion_Factor -> 1.011187421 | O26: 1.034949584 | P26: 1.060305344 | Q26: 1.086282307 | R26: 1.112895692 | S26: 1.140161093
C27: Real 2019 | D27: Calculated | E27: factor | I27: 0.923349448 | J27: =K27/((1+K$16)^Dollar_Conversion_Factor*(1+J$16)^(1-Dollar_Conversion_Factor)) -> 0.9442212469 | K27: =L27/((1+L$16)^Dollar_Conversion_Factor*(1+K$16)^(1-Dollar_Conversion_Factor)) -> 0.9561823024 | L27: =M27/((1+M$16)^Dollar_Conversion_Factor*(1+L$16)^(1-Dollar_Conversion_Factor)) -> 0.9703094914 | M27: =1/(1+M$16)^Dollar_Conversion_Factor -> 0.9897706895 | N27: =1/(1+N$16)^Dollar_Conversion_Factor -> 0.9889363529 | O27: =N27*(1+N$16)^(1-Dollar_Conversion_Factor)*(1+O$16)^Dollar_Conversion_Factor -> 1.012175633 | P27: 1.036973441 | Q27: 1.062378784 | R27: 1.088406545 | S27: 1.115071974
C28: Real 2020 | D28: Calculated | E28: factor | I28: 0.903031245 | J28: =K28/((1+K$16)^Dollar_Conversion_Factor*(1+J$16)^(1-Dollar_Conversion_Factor)) -> 0.9234437622 | K28: =L28/((1+L$16)^Dollar_Conversion_Factor*(1+K$16)^(1-Dollar_Conversion_Factor)) -> 0.9351416161 | L28: =M28/((1+M$16)^Dollar_Conversion_Factor*(1+L$16)^(1-Dollar_Conversion_Factor)) -> 0.9489579378 | M28: =N28/((1+N$16)^Dollar_Conversion_Factor*(1+M$16)^(1-Dollar_Conversion_Factor)) -> 0.9679908943 | N28: =1/(1+N$16)^Dollar_Conversion_Factor -> 0.9889363529 | O28: =1/(1+O$16)^Dollar_Conversion_Factor -> 0.98797083 | P28: =O28*(1+O$16)^(1-Dollar_Conversion_Factor)*(1+P$16)^Dollar_Conversion_Factor -> 1.012175633 | Q28: =P28*(1+P$16)^(1-Dollar_Conversion_Factor)*(1+Q$16)^Dollar_Conversion_Factor -> 1.036973441 | R28: =Q28*(1+Q$16)^(1-Dollar_Conversion_Factor)*(1+R$16)^Dollar_Conversion_Factor -> 1.062378784 | S28: =R28*(1+R$16)^(1-Dollar_Conversion_Factor)*(1+S$16)^Dollar_Conversion_Factor -> 1.088406545
B31: Real price change
E34: Unit | J34: Labour | K34: Other | L34: Total | M34: Check
C36: Benchmark labour / non-labour weights | D36: AER 2017 Annual benchmarking final report | E36: Per cent | J36: 0.597 | K36: =1-J36 -> 0.403 | L36: =SUM(J36:K36) -> 1 | M36: =IF(ROUND(($L36-1),7)=0,"Ok","Check") -> Ok
D40: Source | E40: Unit | M40: ="FY"&RIGHT(M$5,2) -> FY18 | N40: FY19 | O40: FY20 | P40: FY21 | Q40: FY22 | R40: FY23 | S40: FY24
C42: Annual price growth forecast
C43: EGWWS labour | D43: External | E43: Per cent | N43: ='ACT labour price forecast'!J30/100 -> 0.007382366632 | O43: ='ACT labour price forecast'!K30/100 -> 0.005667223273 | P43: ='ACT labour price forecast'!L30/100 -> 0.01113153599 | Q43: ='ACT labour price forecast'!M30/100 -> 0.01548146245 | R43: ='ACT labour price forecast'!N30/100 -> 0.01492473718 | S43: ='ACT labour price forecast'!O30/100 -> 0.01249056463
C44: DAE | N44: 0.0001627999976 | O44: -0.001143156811 | P44: -0.000600906504 | Q44: 0.003100700588 | R44: 0.004968179443 | S44: 0.006502456524
C45: Average | N45: =AVERAGE(N43:N44) -> 0.003772583315 | O45: =AVERAGE(O43:O44) -> 0.002262033231 | P45: 0.005265314745 | Q45: 0.00929108152 | R45: 0.009946458309 | S45: 0.00949651058
C46: Non-labour | D46: External | E46: Per cent | N46: 0 | O46: 0 | P46: 0 | Q46: 0 | R46: 0 | S46: 0
C52: Opex real price factor | D52: Calculated | E52: Factor | N52: =N45*$J$36+N46*$K$36 -> 0.002252232239 | O52: 0.001350433839 | P52: 0.003143392903 | Q52: 0.005546775668 | R52: 0.005938035611 | S52: 0.005669416816
B56: Opex productivity and output growth
C58: Partial factor productivity | D58: Source | E58: Unit | M58: ="FY"&RIGHT(M$5,2) -> FY18 | N58: FY19 | O58: FY20 | P58: FY21 | Q58: FY22 | R58: FY23 | S58: FY24
C60: Partial factor productivity | E60: Per cent
C65: Output growth factor weights
I66: SFA CD | J66: LSE CD | K66: LSE TLG | L66: MPFP
C67: Customer numbers | D67: Four model approach as per AER draft decision, updated for 2018 benchmarking report | E67: Per cent | I67: 0.712 | J67: 0.6766 | K67: 0.5168 | L67: 0.31
C68: Circuit length | E68: Per cent | I68: 0.169 | J68: 0.1181 | K68: 0.1386 | L68: 0.29
C69: Ratcheted maximum demand | E69: Per cent | I69: 0.119 | J69: 0.2054 | K69: 0.3445 | L69: 0.28
C70: Energy throughput | E70: Per cent | L70: 0.12
D73: Source | E73: Unit | L73: ="FY"&RIGHT(L$5,2) -> FY17 | M73: FY18 | N73: FY19 | O73: FY20 | P73: FY21 | Q73: FY22 | R73: FY23 | S73: FY24
B74: Customer numbers
C75: Forecasts
C76: Customer numbers | D76: Revised forecasts | E76: Number | L76: 189168.6667 | M76: 195104.0833 | N76: 198432.9815 | O76: 199671.9311 | P76: 203076.9722 | Q76: 206560.9397 | R76: 210005.5304 | S76: 213413.3143
C77: Incremental customer numbers | D77: Calculated | E77: Number | M77: =M76-L76 -> 5935.416667 | N77: =N76-M76 -> 3328.8982 | O77: =O76-N76 -> 1238.94957 | P77: =P76-O76 -> 3405.041141 | Q77: =Q76-P76 -> 3483.967437 | R77: =R76-Q76 -> 3444.590711 | S77: =S76-R76 -> 3407.783949
C78: Customer growth rate | D78: Calculated | E78: Per cent | M78: =M76/L76-1 -> 0.03137632025 | N78: =N76/M76-1 -> 0.01706216571 | O78: =O76/N76-1 -> 0.00624366756 | P78: =P76/O76-1 -> 0.01705317879 | Q78: =Q76/P76-1 -> 0.0171558961 | R78: =R76/Q76-1 -> 0.01667590551 | S78: =S76/R76-1 -> 0.01622711527
B81: Circuit length
C82: Total mains | D82: RIN Workbook 1 table 3.5.1 | E82: kilometres | L82: 5333 | M82: 5380.3 | N82: 5410.3 | O82: 5452.5 | P82: 5493.7 | Q82: 5523.6 | R82: 5561.8 | S82: 5595.4
C83: Incremental mains | D83: Calculated | E83: kilometres | M83: =M82-L82 -> 47.3 | N83: =N82-M82 -> 30 | O83: =O82-N82 -> 42.2 | P83: =P82-O82 -> 41.2 | Q83: =Q82-P82 -> 29.9 | R83: =R82-Q82 -> 38.2 | S83: =S82-R82 -> 33.6
C84: Mains growth rate | D84: Calculated | E84: Per cent | M84: =M82/L82-1 -> 0.008869304332 | N84: 0.005575897255 | O84: 0.007799937157 | P84: 0.007556166896 | Q84: 0.005442597885 | R84: 0.006915779564 | S84: 0.00604120968
B86: Ratcheted maximum demand
C87: Total volume | D87: AER draft decision | E87: MVA | M87: 724 | N87: 724 | O87: 724 | P87: 724 | Q87: 724 | R87: 724 | S87: 724
C88: Incremental throughput | D88: Calculated | E88: MVA | N88: =N87-M87 -> 0 | O88: =O87-N87 -> 0 | P88: =P87-O87 -> 0 | Q88: =Q87-P87 -> 0 | R88: =R87-Q87 -> 0 | S88: =S87-R87 -> 0
C89: Ratched maximum demand growth rate | N89: =N87/M87-1 -> 0 | O89: =O87/N87-1 -> 0 | P89: =P87/O87-1 -> 0 | Q89: =Q87/P87-1 -> 0 | R89: =R87/Q87-1 -> 0 | S89: 0
B91: Energy throughput | D91: Revised forecasts | M91: 2897302.846 | N91: 2916615.104 | O91: 2964994.485 | P91: 3030351.325 | Q91: 3016714.909 | R91: 2998541.81 | S91: 2966172.328
C94: Output growth rates
C95: Customer numbers | D95: Calculated | E95: Per cent | N95: =LN(N76)-LN(M76) -> 0.01691824176 | O95: 0.006224256623 | P95: 0.01690940556 | Q95: 0.01701039549 | R95: 0.01653838929 | S95: 0.01609686283
C96: Circuit length | D96: Calculated | E96: Per cent | N96: =LN(N82)-LN(M82) -> 0.005560409485 | O96: =LN(O82)-LN(N82) -> 0.007769674908 | P96: 0.007527762065 | Q96: 0.005427840471 | R96: 0.006891975248 | S96: 0.006023034735
C97: Ratched maximum demand | D97: Calculated | E97: Per cent | N97: =LN(N87)-LN(M87) -> 0 | O97: =LN(O87)-LN(N87) -> 0 | P97: 0 | Q97: 0 | R97: 0 | S97: 0
C98: Energy throughput | D98: Calculated | E98: Per cent | N98: =LN(N91)-LN(M91) -> 0.006643481869 | O98: =LN(O91)-LN(N91) -> 0.01645143935 | P98: 0.02180338936 | Q98: -0.004510101024 | R98: -0.006042353487 | S98: -0.01085376402
E99: SFA CD | N99: =SUMPRODUCT(N95:N98,$I$67:$I$70) -> 0.01298549733 | O99: =SUMPRODUCT(O95:O98,$I$67:$I$70) -> 0.005744745775 | P99: =SUMPRODUCT(P95:P98,$I$67:$I$70) -> 0.01331168855 | Q99: 0.01302870663 | R99: 0.01294007699 | S99: 0.0124788592
E100: LSE CD | N100: =SUMPRODUCT(N95:N98,$J$67:$J$70) -> 0.01210356673 | O100: =SUMPRODUCT(O95:O98,$J$67:$J$70) -> 0.005128930638 | P100: =SUMPRODUCT(P95:P98,$J$67:$J$70) -> 0.0123299325 | Q100: 0.01215026155 | R100: 0.01200381647 | S100: 0.01160245779
E101: LSE TLG | N101: =SUMPRODUCT(N95:N98,$K$67:$K$70) -> 0.009514020094 | O101: =SUMPRODUCT(O95:O98,$K$67:$K$70) -> 0.004293572765 | P101: 0.009782128618 | Q101: 0.009543271078 | R101: 0.009502267355 | S101: 0.009153651324
E102: MPFP | N102: =SUMPRODUCT(N95:N98,$L$67:$L$70) -> 0.007654391519 | O102: =SUMPRODUCT(O95:O98,$L$67:$L$70) -> 0.006156897998 | P102: 0.01004137345 | Q102: 0.006306084215 | R102: 0.006400491084 | S102: 0.005434255868
C103: Opex cost function estimate approach | D103: Calculated | E103: Per cent | N103: =AVERAGE(N99:N102) -> 0.01056436892 | O103: =AVERAGE(O99:O102) -> 0.005331036794 | P103: 0.01136628078 | Q103: 0.01025708087 | R103: 0.01021166298 | S103: 0.009667306047
C107: Output growth ($) | D107: Calculated | E107: Dollars
C109: Rate of change
C110: Real price change | E110: Per cent | N110: =N52 -> 0.002252232239 | O110: =O52 -> 0.001350433839 | P110: 0.003143392903 | Q110: 0.005546775668 | R110: 0.005938035611 | S110: 0.005669416816
C111: Output growth | E111: Per cent | N111: =N103 -> 0.01056436892 | O111: =O103 -> 0.005331036794 | P111: 0.01136628078 | Q111: 0.01025708087 | R111: 0.01021166298 | S111: 0.009667306047
C112: Productivity growth | E112: Per cent | N112: =M60 -> 0 | O112: =N60 -> 0 | P112: 0 | Q112: 0 | R112: 0 | S112: 0
C113: Rate of change | D113: Calculated | E113: Per cent | N113: =N110+N111-N112 -> 0.01281660116 | O113: =O110+O111-O112 -> 0.006681470632 | P113: 0.01450967368 | Q113: 0.01580385653 | R113: 0.01614969859 | S113: 0.01533672286
B116: Rate of change workings

Sheet ACT labour price forecast
B1: Expected Labour Price Changes for Australia and the Australian Capital Territory
B2: (per cent change, year average, year ended June)
C4: 2012 | D4: 2013 | E4: 2014 | F4: 2015 | G4: 2016 | H4: 2017 | I4: 2018 | J4: 2019 | K4: 2020 | L4: 2021 | M4: 2022 | N4: 2023 | O4: 2024 | P4: Average (g)
B5: NOMINAL LABOUR PRICE CHANGES | C5: Actuals | I5: Forecasts | K5: Next Regulatory Period
B7: Australian Capital Territory Wage Inflation
B8: (1) All Industries
B9: Average Weekly Earnings (a) | C9: 5.701639145 | D9: 5.285096944 | E9: -3.680396644 | F9: 1.088893288 | G9: 1.912782348 | H9: 0.482260677 | I9: 2.572171551 | J9: 3.277012922 | K9: 3.099991397 | L9: 3.27014516 | M9: 4.058612148 | N9: 4.269658733 | O9: 3.729881438 | P9: =AVERAGE(K9:O9) -> 3.685657775
B10: Average Weekly Ordinary Time Earnings (b) | C10: 5.291094733 | D10: 6.608226568 | E10: 0.7484714316 | F10: 1.591952047 | G10: 1.124124537 | H10: 2.11049354 | I10: 2.972171551 | J10: 3.577012922 | K10: 3.199991397 | L10: 3.47014516 | M10: 4.358612148 | N10: 4.669658733 | O10: 3.979881438 | P10: =AVERAGE(K10:O10) -> 3.935657775
B11: Wage Price Index (c) | C11: 3.31002331 | D11: 3.700361011 | E11: 2.371627502 | F11: 1.74282678 | G11: 1.733862544 | H11: 1.848049281 | I11: 2.372171551 | J11: 2.777012922 | K11: 2.599991397 | L11: 3.07014516 | M11: 3.558612148 | N11: 3.769658733 | O11: 3.279881438 | P11: =AVERAGE(K11:O11) -> 3.255657775
B12: (2) Electricity, Gas, Water and Waste Services Wages
B13: Wage Price Index (c) | C13: 3.4 | D13: 4 | E13: 3.1 | F13: 2.6 | G13: 2.3 | H13: 2.1 | I13: 2.532505119 | J13: 2.980205038 | K13: 3.066722327 | L13: 3.613153599 | M13: 4.048146245 | N13: 3.992473718 | O13: 3.749056463 | P13: =AVERAGE(K13:O13) -> 3.693910471
B14: Australian Wage Inflation (d)
B15: (1) All Industries
B16: Average Weekly Earnings | C16: 4.143446208 | D16: 4.304945648 | E16: 2.730807279 | F16: 1.317911049 | G16: 1.700834392 | H16: 1.624576198 | I16: 2.455346992 | J16: 2.765667281 | K16: 2.959088404 | L16: 3.164240462 | M16: 3.420013222 | N16: 3.637870549 | O16: 3.817746947 | P16: =AVERAGE(K16:O16) -> 3.399791917
B17: Average Weekly Ordinary Time Earnings | C17: 4.333333333 | D17: 4.589615679 | E17: 2.994846328 | F17: 2.429929235 | G17: 1.877000186 | H17: 2.045192012 | I17: 3.382824838 | J17: 3.421348157 | K17: 3.283697059 | L17: 3.875593469 | M17: 4.540782502 | N17: 4.434081203 | O17: 3.802489273 | P17: =AVERAGE(K17:O17) -> 3.987328701
B18: Wage Price Index | C18: 3.644859813 | D18: 3.313796213 | E18: 2.618372245 | F18: 2.402721667 | G18: 2.117940199 | H18: 1.952013013 | I18: 2.400840455 | J18: 2.569295163 | K18: 2.594136088 | L18: 3.27014516 | M18: 3.708612148 | N18: 3.769658733 | O18: 3.379881438 | P18: =AVERAGE(K18:O18) -> 3.344486713
B19: (2) Electricity, Gas, Water and Waste Services Wages
B20: Wage Price Index | C20: 3.495860166 | D20: 4.222222222 | E20: 3.162260128 | F20: 2.849473467 | G20: 2.409154788 | H20: 2.195647912 | I20: 2.639235142 | J20: 3.187793675 | K20: 3.278532816 | L20: 3.767548668 | M20: 4.136624612 | N20: 4.228125429 | O20: 3.932765011 | P20: =AVERAGE(K20:O20) -> 3.868719307
B22: Consumer Price Index (headline) (e) | C22: 2.302379125 | D22: 2.275568892 | E22: 2.71393643 | F22: 1.713877648 | G22: 1.38076293 | H22: 1.708217913 | I22: 1.962076309 | J22: 2.241968375 | K22: 2.5 | L22: 2.5 | M22: 2.5 | N22: 2.5 | O22: 2.5 | P22: 2.338447056
B23: REAL LABOUR PRICE CHANGES (f)
B24: Australian Capital Territory Wage Inflation
B25: (1) All Industries
B26: Average Weekly Earnings | C26: =C9-C22 -> 3.39926002 | D26: 3.009528052 | E26: -6.394333074 | F26: -0.6249843597 | G26: 0.5320194175 | H26: -1.225957236 | I26: 0.6100952422 | J26: 1.035044547 | K26: 0.5999913974 | L26: 0.7701451596 | M26: 1.558612148 | N26: 1.769658733 | O26: 1.229881438 | P26: 1.347210719
B27: Average Weekly Ordinary Time Earnings | C27: =C10-C22 -> 2.988715607 | D27: 4.332657676 | E27: -1.965464999 | F27: -0.1219256011 | G27: -0.2566383935 | H27: 0.4022756265 | I27: 1.010095242 | J27: 1.335044547 | K27: 0.6999913974 | L27: 0.9701451596 | M27: 1.858612148 | N27: 2.169658733 | O27: 1.479881438 | P27: 1.597210719
B28: Wage Price Index | C28: =C11-C22 -> 1.007644185 | D28: 1.424792119 | E28: -0.3423089281 | F28: 0.02894913184 | G28: 0.3530996144 | H28: 0.1398313681 | I28: 0.4100952422 | J28: 0.5350445474 | K28: 0.09999139737 | L28: 0.5701451596 | M28: 1.058612148 | N28: 1.269658733 | O28: 0.7798814377 | P28: =P11-P22 -> 0.917210719
B29: (2) Electricity, Gas, Water and Waste Services Wages
B30: Wage Price Index | C30: =C13-C22 -> 1.097620875 | D30: 1.724431108 | E30: 0.3860635697 | F30: 0.8861223518 | G30: 0.91923707 | H30: 0.3917820868 | I30: 0.5704288097 | J30: 0.7382366632 | K30: 0.5667223273 | L30: 1.113153599 | M30: 1.548146245 | N30: 1.492473718 | O30: 1.249056463 | P30: 1.355463415
B31: Australian Wage Inflation
B32: (1) All Industries
B33: Average Weekly Earnings | C33: =C16-C22 -> 1.841067083 | D33: 2.029376756 | E33: 0.01687084877 | F33: -0.3959665988 | G33: 0.3200714624 | H33: -0.08364171569 | I33: 0.4932706829 | J33: 0.5236989055 | K33: 0.4590884039 | L33: 0.6642404621 | M33: 0.9200132224 | N33: 1.137870549 | O33: 1.317746947 | P33: 1.061344861
B34: Average Weekly Ordinary Time Earnings | C34: =C17-C22 -> 2.030954208 | D34: 2.314046787 | E34: 0.2809098974 | F34: 0.7160515873 | G34: 0.4962372562 | H34: 0.3369740988 | I34: 1.420748529 | J34: 1.179379782 | K34: 0.7836970594 | L34: 1.375593469 | M34: 2.040782502 | N34: 1.934081203 | O34: 1.302489273 | P34: 1.648881645
B35: Wage Price Index | C35: =C18-C22 -> 1.342480688 | D35: 1.038227321 | E35: -0.09556418506 | F35: 0.6888440188 | G35: 0.7371772693 | H35: 0.2437951002 | I35: 0.4387641463 | J35: 0.3273267879 | K35: 0.09413608776 | L35: 0.7701451596 | M35: 1.208612148 | N35: 1.269658733 | O35: 0.8798814377 | P35: 1.006039657
B36: (2) Electricity, Gas, Water and Waste Services Wages
B37: Wage Price Index | C37: =C20-C22 -> 1.19348104 | D37: =D20-D22 -> 1.94665333 | E37: 0.4483236976 | F37: 1.135595819 | G37: =G20-G22 -> 1.028391858 | H37: 0.487429999 | I37: 0.6771588334 | J37: 0.9458253001 | K37: 0.7785328162 | L37: 1.267548668 | M37: 1.636624612 | N37: 1.728125429 | O37: 1.432765011 | P37: =P20-P22 -> 1.530272251
P39: Source: BIS Oxford Economics, Department of Employment, RBA, ABS Data
B41: (a) Average Weekly Earnings (AWE) for all employees (i.e. for both full-time and part-time employees). Includes overtime earnings but excludes bonus payments.
B42: It is derived by dividing weekly earnings of all adult employees by the number of employees. It is not a strict wage inflation measure but a long historical series allows for the calculation of how employee
B43: earnings has changed over time.
B44: (b) Average Weekly Ordinary Time Earnings for full-time adult persons. Excludes over-time earnings but includes bonuses.
B45: (c) Wage price index for total hourly rates of pay excluding bonuses. This is the only series published by the ABS at the state by industry level. It measures quarterly change in combined ordinary time and overtime hourly rates of pay.
B46: (d) Australian wages provided for comparison.
B47: (e) Reserve Bank of Australia forecasts to December 2019. Beyond that, we have used the mid-point of the Reserve Bank's 2 to 3 per cent inflation target range as preferred by the AER in their recent revenue determinations.
B48: (f) Real price changes are calculated by deducting the inflation rate from nominal price changes.
B49: (g) Expected average wage change for ActewAGL's next revenue determination period i.e. from 2019/20 to 2023/24 inclusive.
B50: Average inflation is calculated as a geometric mean of Reserve Bank's inflation forecasts for the next two years and assuming an inflation of 2.5% (the mid-point of the bank's 2 to 3 per cent inflation target)
B51: for the next eight years. This methodology has been adopted by the AER in their recent revenue determinations.
